[Event "Titled Tuesday Blitz June 15 2021"]
[White "Andreikin, Dmitry"]
[Black "Marra, Eduardo da Costa"]
[WhiteFideId "4158814"]
[BlackFideId "2106990"]
[WhiteElo "2782"]
[BlackElo "2262"]
[Result "1-0"]
[Round "01"]
[TimeControl "180+1"]
[Date "2021.06.15"]
[WhiteClock "0:01:18"]
[BlackClock "0:00:29"]

1. d4 {[%clk 0:03:00]}  Nf6 {[%clk 0:02:58]} 2. Bg5 {[%clk 0:03:00]}  d5 {[%clk 0:02:58]} 3. Nd2 {[%clk 0:02:59]}  c6 {[%clk 0:02:55]} 4. e3 {[%clk 0:02:58]}  Bf5 {[%clk 0:02:53]} 5. c4 {[%clk 0:02:57]}  e6 {[%clk 0:02:53]} 6. Ngf3 {[%clk 0:02:55]}  Nbd7 {[%clk 0:02:52]} 7. Be2 {[%clk 0:02:53]}  h6 {[%clk 0:02:52]} 8. Bf4 {[%clk 0:02:50]}  Be7 {[%clk 0:02:50]} 9. Qb3 {[%clk 0:02:50]}  Qb6 {[%clk 0:02:49]} 10. c5 {[%clk 0:02:50]}  Qxb3 {[%clk 0:02:48]} 11. axb3 {[%clk 0:02:51]}  a6 {[%clk 0:02:48]} 12. b4 {[%clk 0:02:50]}  Rc8 {[%clk 0:02:42]} 13. h3 {[%clk 0:02:47]}  Ne4 {[%clk 0:02:42]} 14. Nb3 {[%clk 0:02:43]}  Bd8 {[%clk 0:02:39]} 15. Na5 {[%clk 0:02:43]}  Bxa5 {[%clk 0:02:39]} 16. bxa5 {[%clk 0:02:41]}  f6 {[%clk 0:02:35]} 17. Ra3 {[%clk 0:02:39]}  e5 {[%clk 0:02:25]} 18. Bh2 {[%clk 0:02:36]}  Ra8 {[%clk 0:02:00]} 19. b4 {[%clk 0:02:22]}  exd4 {[%clk 0:01:49]} 20. Nxd4 {[%clk 0:02:23]}  Bg6 {[%clk 0:01:45]} 21. h4 {[%clk 0:02:07]}  h5 {[%clk 0:01:34]} 22. f3 {[%clk 0:02:03]}  Nexc5 {[%clk 0:01:26]} 23. bxc5 {[%clk 0:02:00]}  Nxc5 {[%clk 0:01:27]} 24. Kf2 {[%clk 0:01:59]}  Kd7 {[%clk 0:01:26]} 25. Rc1 {[%clk 0:01:58]}  Ne6 {[%clk 0:01:24]} 26. Nxe6 {[%clk 0:01:55]}  Kxe6 {[%clk 0:01:25]} 27. Rb3 {[%clk 0:01:52]}  Ra7 {[%clk 0:01:22]} 28. Rb6 {[%clk 0:01:48]}  Kd7 {[%clk 0:01:11]} 29. Rd1 {[%clk 0:01:45]}  Kc8 {[%clk 0:01:08]} 30. Rd4 {[%clk 0:01:38]}  Re8 {[%clk 0:00:59]} 31. Rb3 {[%clk 0:01:37]}  Re7 {[%clk 0:00:53]} 32. Rc3 {[%clk 0:01:37]}  Kd7 {[%clk 0:00:53]} 33. e4 {[%clk 0:01:37]}  Bf7 {[%clk 0:00:51]} 34. exd5 {[%clk 0:01:33]}  Bxd5 {[%clk 0:00:50]} 35. Bc4 {[%clk 0:01:32]}  Ra8 {[%clk 0:00:35]} 36. Bxd5 {[%clk 0:01:31]}  cxd5 {[%clk 0:00:35]} 37. Rxd5+ {[%clk 0:01:31]}  Ke6 {[%clk 0:00:35]} 38. Rxh5 {[%clk 0:01:31]}  Rd8 {[%clk 0:00:33]} 39. Rhc5 {[%clk 0:01:23]}  Rd2+ {[%clk 0:00:30]} 40. Kg3 {[%clk 0:01:23]}  Ra2 {[%clk 0:00:27]} 41. Re3+ {[%clk 0:01:21]}  Kf7 {[%clk 0:00:28]} 42. Rxe7+ {[%clk 0:01:21]}  Kxe7 {[%clk 0:00:28]} 43. Rc7+ {[%clk 0:01:21]}  Ke6 {[%clk 0:00:29]} 44. Rxg7 {[%clk 0:01:18]} 1-0


[Site "https://www.chess.com"]

[Event "Titled Tuesday Blitz June 15 2021"]
[White "Arias, Juan Cruz"]
[Black "Svane, Rasmus"]
[WhiteFideId "118540"]
[BlackFideId "4657101"]
[WhiteElo "2083"]
[BlackElo "2669"]
[Result "0-1"]
[Round "01"]
[TimeControl "180+1"]
[Date "2021.06.15"]
[WhiteClock "0:00:08"]
[BlackClock "0:00:52"]

1. e4 {[%clk 0:03:00]}  c6 {[%clk 0:02:59]} 2. d4 {[%clk 0:02:59]}  d5 {[%clk 0:03:00]} 3. exd5 {[%clk 0:02:59]}  cxd5 {[%clk 0:03:01]} 4. Bf4 {[%clk 0:03:00]}  Nc6 {[%clk 0:03:00]} 5. c3 {[%clk 0:03:00]}  Bf5 {[%clk 0:03:01]} 6. Nd2 {[%clk 0:02:59]}  e6 {[%clk 0:03:01]} 7. Ngf3 {[%clk 0:02:59]}  Bd6 {[%clk 0:03:01]} 8. Bxd6 {[%clk 0:02:59]}  Qxd6 {[%clk 0:03:02]} 9. Be2 {[%clk 0:02:59]}  Nf6 {[%clk 0:03:01]} 10. O-O {[%clk 0:02:59]}  h6 {[%clk 0:03:00]} 11. Nb3 {[%clk 0:03:00]}  O-O {[%clk 0:03:00]} 12. Re1 {[%clk 0:03:00]}  Rab8 {[%clk 0:03:00]} 13. Bf1 {[%clk 0:02:59]}  Qc7 {[%clk 0:02:59]} 14. a3 {[%clk 0:02:54]}  Rfc8 {[%clk 0:02:55]} 15. Nc5 {[%clk 0:02:53]}  Nd7 {[%clk 0:02:51]} 16. Nd3 {[%clk 0:02:52]}  Bg4 {[%clk 0:02:43]} 17. h3 {[%clk 0:02:51]}  Bh5 {[%clk 0:02:42]} 18. Be2 {[%clk 0:02:48]}  Re8 {[%clk 0:02:38]} 19. Qd2 {[%clk 0:02:48]}  Na5 {[%clk 0:02:35]} 20. Qd1 {[%clk 0:02:40]}  Nc4 {[%clk 0:02:34]} 21. Nd2 {[%clk 0:02:29]}  Bxe2 {[%clk 0:02:19]} 22. Qxe2 {[%clk 0:02:30]}  Nd6 {[%clk 0:02:19]} 23. Rac1 {[%clk 0:02:25]}  Rbc8 {[%clk 0:02:19]} 24. Nf3 {[%clk 0:02:21]}  a5 {[%clk 0:02:17]} 25. Nfe5 {[%clk 0:02:19]}  Nxe5 {[%clk 0:02:15]} 26. Nxe5 {[%clk 0:02:19]}  Nc4 {[%clk 0:02:14]} 27. Nd3 {[%clk 0:02:16]}  b6 {[%clk 0:02:14]} 28. Ra1 {[%clk 0:02:14]}  Nd6 {[%clk 0:02:13]} 29. Rac1 {[%clk 0:02:02]}  Re7 {[%clk 0:02:12]} 30. Qe3 {[%clk 0:01:58]}  Nc4 {[%clk 0:02:12]} 31. Qe2 {[%clk 0:01:58]}  Rce8 {[%clk 0:02:12]} 32. Qf3 {[%clk 0:01:52]}  Nd6 {[%clk 0:02:10]} 33. Qe2 {[%clk 0:01:52]}  Qc6 {[%clk 0:02:07]} 34. Ne5 {[%clk 0:01:51]}  Qb7 {[%clk 0:02:06]} 35. Nd3 {[%clk 0:01:46]}  Ne4 {[%clk 0:02:06]} 36. f3 {[%clk 0:01:45]}  Nd6 {[%clk 0:02:05]} 37. Qd2 {[%clk 0:01:44]}  Nc4 {[%clk 0:02:04]} 38. Qe2 {[%clk 0:01:44]}  Qc7 {[%clk 0:02:04]} 39. Kh1 {[%clk 0:01:44]}  Nd6 {[%clk 0:02:00]} 40. Qf2 {[%clk 0:01:39]}  Rb8 {[%clk 0:01:58]} 41. Kg1 {[%clk 0:01:37]}  Ree8 {[%clk 0:01:58]} 42. Qg3 {[%clk 0:01:34]}  Qe7 {[%clk 0:01:54]} 43. Qf4 {[%clk 0:01:25]}  Rbc8 {[%clk 0:01:52]} 44. Re2 {[%clk 0:01:24]}  Nc4 {[%clk 0:01:34]} 45. Rce1 {[%clk 0:01:22]}  Qd7 {[%clk 0:01:34]} 46. Qc1 {[%clk 0:01:07]}  Re7 {[%clk 0:01:34]} 47. Qd1 {[%clk 0:01:07]}  Rce8 {[%clk 0:01:33]} 48. Qc1 {[%clk 0:01:07]}  Qc7 {[%clk 0:01:33]} 49. Qf4 {[%clk 0:01:00]}  Qc6 {[%clk 0:01:33]} 50. h4 {[%clk 0:00:58]}  Qb5 {[%clk 0:01:33]} 51. g4 {[%clk 0:00:48]}  Nxa3 {[%clk 0:01:31]} 52. Ne5 {[%clk 0:00:45]}  Nc4 {[%clk 0:01:30]} 53. g5 {[%clk 0:00:45]}  Nxe5 {[%clk 0:01:22]} 54. dxe5 {[%clk 0:00:35]}  h5 {[%clk 0:01:19]} 55. g6 {[%clk 0:00:31]}  fxg6 {[%clk 0:01:20]} 56. Qg5 {[%clk 0:00:24]}  Qd3 {[%clk 0:01:19]} 57. Rg2 {[%clk 0:00:24]}  Kh7 {[%clk 0:01:19]} 58. Re3 {[%clk 0:00:15]}  Qb1+ {[%clk 0:01:18]} 59. Kh2 {[%clk 0:00:14]}  b5 {[%clk 0:01:19]} 60. f4 {[%clk 0:00:14]}  Qf5 {[%clk 0:01:16]} 61. Reg3 {[%clk 0:00:14]}  Rf8 {[%clk 0:01:09]} 62. Qxg6+ {[%clk 0:00:07]}  Qxg6 {[%clk 0:01:09]} 63. Rxg6 {[%clk 0:00:08]}  Rxf4 {[%clk 0:01:10]} 64. R6g5 {[%clk 0:00:08]}  Rxh4+ {[%clk 0:01:10]} 65. Kg3 {[%clk 0:00:08]}  Rg4+ {[%clk 0:01:09]} 66. Rxg4 {[%clk 0:00:08]}  hxg4 {[%clk 0:01:09]} 67. Kxg4 {[%clk 0:00:09]}  Rf7 {[%clk 0:01:08]} 68. Rh2+ {[%clk 0:00:04]}  Kg8 {[%clk 0:01:07]} 69. Re2 {[%clk 0:00:04]}  Rf5 {[%clk 0:01:05]} 70. b3 {[%clk 0:00:04]}  Kf7 {[%clk 0:01:04]} 71. Ra2 {[%clk 0:00:05]}  Rxe5 {[%clk 0:01:03]} 72. Rxa5 {[%clk 0:00:05]}  Re3 {[%clk 0:01:01]} 73. Rxb5 {[%clk 0:00:05]}  Rxc3 {[%clk 0:01:01]} 74. Kg5 {[%clk 0:00:06]}  Rg3+ {[%clk 0:00:57]} 75. Kf4 {[%clk 0:00:06]}  Rg1 {[%clk 0:00:58]} 76. Ke5 {[%clk 0:00:07]}  Re1+ {[%clk 0:00:57]} 77. Kd6 {[%clk 0:00:07]}  d4 {[%clk 0:00:56]} 78. Rb4 {[%clk 0:00:07]}  e5 {[%clk 0:00:54]} 79. Kd5 {[%clk 0:00:08]}  d3 {[%clk 0:00:52]} 0-1


[Site "https://www.chess.com"]

[Event "Titled Tuesday Blitz June 15 2021"]
[White "Chigaev, Maksim"]
[Black "Fernandez Hernandez, Arturo A."]
[WhiteFideId "4108116"]
[BlackFideId "3509230"]
[WhiteElo "2646"]
[BlackElo "2400"]
[Result "1-0"]
[Round "01"]
[TimeControl "180+1"]
[Date "2021.06.15"]
[WhiteClock "0:01:42"]
[BlackClock "0:00:15"]

1. d4 {[%clk 0:02:58]}  Nf6 {[%clk 0:02:59]} 2. Nf3 {[%clk 0:02:57]}  g6 {[%clk 0:02:58]} 3. g3 {[%clk 0:02:56]}  Bg7 {[%clk 0:02:59]} 4. Bg2 {[%clk 0:02:57]}  O-O {[%clk 0:02:59]} 5. O-O {[%clk 0:02:58]}  d6 {[%clk 0:03:00]} 6. Nc3 {[%clk 0:02:57]}  c6 {[%clk 0:02:56]} 7. e4 {[%clk 0:02:57]}  Qc7 {[%clk 0:02:51]} 8. h3 {[%clk 0:02:56]}  Nbd7 {[%clk 0:02:50]} 9. Re1 {[%clk 0:02:56]}  e5 {[%clk 0:02:50]} 10. Bg5 {[%clk 0:02:56]}  h6 {[%clk 0:02:50]} 11. Be3 {[%clk 0:02:56]}  Re8 {[%clk 0:02:49]} 12. Qd2 {[%clk 0:02:57]}  Kh7 {[%clk 0:02:50]} 13. Rad1 {[%clk 0:02:56]}  b5 {[%clk 0:02:40]} 14. a3 {[%clk 0:02:32]}  a6 {[%clk 0:02:26]} 15. dxe5 {[%clk 0:02:30]}  dxe5 {[%clk 0:02:25]} 16. Qd6 {[%clk 0:02:30]}  Qxd6 {[%clk 0:02:12]} 17. Rxd6 {[%clk 0:02:31]}  Bb7 {[%clk 0:02:12]} 18. Red1 {[%clk 0:02:31]}  Re7 {[%clk 0:01:27]} 19. Nd2 {[%clk 0:02:23]}  Ne8 {[%clk 0:01:07]} 20. Rd3 {[%clk 0:02:22]}  Nf8 {[%clk 0:01:08]} 21. Nb3 {[%clk 0:02:22]}  Ne6 {[%clk 0:01:08]} 22. Nc5 {[%clk 0:02:15]}  Bc8 {[%clk 0:01:02]} 23. Ne2 {[%clk 0:02:13]}  Bf8 {[%clk 0:00:55]} 24. f4 {[%clk 0:02:07]}  f6 {[%clk 0:00:50]} 25. f5 {[%clk 0:02:02]}  Nxc5 {[%clk 0:00:45]} 26. Bxc5 {[%clk 0:02:03]}  Rf7 {[%clk 0:00:44]} 27. Bxf8 {[%clk 0:01:55]}  Rxf8 {[%clk 0:00:45]} 28. g4 {[%clk 0:01:56]}  Ra7 {[%clk 0:00:28]} 29. Nc1 {[%clk 0:01:52]}  h5 {[%clk 0:00:24]} 30. Nb3 {[%clk 0:01:52]}  Rg7 {[%clk 0:00:19]} 31. Kf2 {[%clk 0:01:50]}  hxg4 {[%clk 0:00:18]} 32. hxg4 {[%clk 0:01:51]}  gxf5 {[%clk 0:00:19]} 33. gxf5 {[%clk 0:01:51]}  Nc7 {[%clk 0:00:17]} 34. Nc5 {[%clk 0:01:48]}  Kg8 {[%clk 0:00:16]} 35. b4 {[%clk 0:01:47]}  Kf7 {[%clk 0:00:16]} 36. Rd6 {[%clk 0:01:43]}  Ke7 {[%clk 0:00:15]} 37. Rxc6 {[%clk 0:01:43]}  Rfg8 {[%clk 0:00:15]} 38. Rxc7+ {[%clk 0:01:42]} 1-0


[Site "https://www.chess.com"]

[Event "Titled Tuesday Blitz June 15 2021"]
[White "Denishev, Marat"]
[Black "Xiong, Jeffery"]
[WhiteFideId "24131563"]
[BlackFideId "2047640"]
[WhiteElo "2132"]
[BlackElo "2724"]
[Result "0-1"]
[Round "01"]
[TimeControl "180+1"]
[Date "2021.06.15"]
[WhiteClock "0:00:01"]
[BlackClock "0:00:32"]

1. d4 {[%clk 0:02:59]}  Nf6 {[%clk 0:02:58]} 2. c4 {[%clk 0:02:59]}  e6 {[%clk 0:02:59]} 3. Nf3 {[%clk 0:02:59]}  d5 {[%clk 0:02:59]} 4. g3 {[%clk 0:03:00]}  dxc4 {[%clk 0:02:53]} 5. Bg2 {[%clk 0:02:59]}  a6 {[%clk 0:02:54]} 6. a4 {[%clk 0:02:59]}  Nc6 {[%clk 0:02:52]} 7. O-O {[%clk 0:02:57]}  Bd7 {[%clk 0:02:28]} 8. Nc3 {[%clk 0:02:43]}  Be7 {[%clk 0:02:22]} 9. e4 {[%clk 0:02:42]}  O-O {[%clk 0:02:21]} 10. Qe2 {[%clk 0:02:34]}  Na5 {[%clk 0:02:21]} 11. Bg5 {[%clk 0:02:28]}  Nb3 {[%clk 0:02:08]} 12. Rad1 {[%clk 0:02:27]}  b6 {[%clk 0:02:09]} 13. Qxc4 {[%clk 0:02:21]}  Na5 {[%clk 0:02:09]} 14. Qd3 {[%clk 0:02:19]}  h6 {[%clk 0:02:08]} 15. Bc1 {[%clk 0:02:05]}  Bc6 {[%clk 0:01:59]} 16. Rfe1 {[%clk 0:01:56]}  Bb7 {[%clk 0:01:56]} 17. h4 {[%clk 0:01:49]}  Re8 {[%clk 0:01:31]} 18. Bf4 {[%clk 0:01:24]}  Nd7 {[%clk 0:01:15]} 19. h5 {[%clk 0:00:53]}  Nc6 {[%clk 0:01:09]} 20. g4 {[%clk 0:00:52]}  Nb4 {[%clk 0:01:08]} 21. Qd2 {[%clk 0:00:50]}  c5 {[%clk 0:01:06]} 22. d5 {[%clk 0:00:45]}  exd5 {[%clk 0:01:06]} 23. exd5 {[%clk 0:00:45]}  Bf6 {[%clk 0:01:05]} 24. g5 {[%clk 0:00:34]}  hxg5 {[%clk 0:01:05]} 25. Nxg5 {[%clk 0:00:35]}  Nf8 {[%clk 0:00:59]} 26. Nce4 {[%clk 0:00:25]}  Bd4 {[%clk 0:00:53]} 27. d6 {[%clk 0:00:19]}  Nd5 {[%clk 0:00:50]} 28. Bg3 {[%clk 0:00:11]}  Qd7 {[%clk 0:00:49]} 29. Bh3 {[%clk 0:00:11]}  Qxa4 {[%clk 0:00:49]} 30. Qe2 {[%clk 0:00:10]}  Qc6 {[%clk 0:00:45]} 31. Qg4 {[%clk 0:00:10]}  Nf6 {[%clk 0:00:40]} 32. Qf5 {[%clk 0:00:05]}  Bc8 {[%clk 0:00:38]} 33. Nxf6+ {[%clk 0:00:03]}  Bxf6 {[%clk 0:00:38]} 34. d7 {[%clk 0:00:01]}  Bxd7 {[%clk 0:00:38]} 35. Rxe8 {[%clk 0:00:01]}  Bxf5 {[%clk 0:00:36]} 36. Rxa8 {[%clk 0:00:01]}  Bxh3 {[%clk 0:00:32]} 0-1


[Site "https://www.chess.com"]

[Event "Titled Tuesday Blitz June 15 2021"]
[White "Donskov, Anatoly"]
[Black "Kamsky, Gata"]
[WhiteFideId "24143413"]
[BlackFideId "2000024"]
[WhiteElo "2221"]
[BlackElo "2644"]
[Result "1/2-1/2"]
[Round "01"]
[TimeControl "180+1"]
[Date "2021.06.15"]
[WhiteClock "0:00:18"]
[BlackClock "0:00:57"]

1. e4 {[%clk 0:03:00]}  c5 {[%clk 0:02:58]} 2. Nf3 {[%clk 0:03:00]}  e6 {[%clk 0:02:59]} 3. d4 {[%clk 0:03:01]}  cxd4 {[%clk 0:02:59]} 4. Nxd4 {[%clk 0:03:02]}  a6 {[%clk 0:02:59]} 5. c4 {[%clk 0:03:02]}  b6 {[%clk 0:02:58]} 6. Nc3 {[%clk 0:03:02]}  Bb7 {[%clk 0:02:58]} 7. Bd3 {[%clk 0:02:57]}  d6 {[%clk 0:02:57]} 8. O-O {[%clk 0:02:56]}  Nd7 {[%clk 0:02:57]} 9. Qe2 {[%clk 0:02:54]}  g6 {[%clk 0:02:56]} 10. Nf3 {[%clk 0:02:52]}  Ngf6 {[%clk 0:02:53]} 11. h3 {[%clk 0:02:43]}  Qc7 {[%clk 0:02:52]} 12. Bf4 {[%clk 0:02:42]}  Nh5 {[%clk 0:02:49]} 13. Bh2 {[%clk 0:02:41]}  Be7 {[%clk 0:02:45]} 14. Rfd1 {[%clk 0:02:39]}  O-O {[%clk 0:02:45]} 15. Rac1 {[%clk 0:02:38]}  Rac8 {[%clk 0:02:44]} 16. b3 {[%clk 0:02:29]}  Rfd8 {[%clk 0:02:40]} 17. Bb1 {[%clk 0:02:15]}  Qb8 {[%clk 0:02:35]} 18. Nd2 {[%clk 0:01:32]}  Bg5 {[%clk 0:02:17]} 19. g3 {[%clk 0:01:11]}  Be7 {[%clk 0:02:12]} 20. g4 {[%clk 0:01:10]}  Ng7 {[%clk 0:02:08]} 21. f4 {[%clk 0:01:10]}  Ba8 {[%clk 0:02:05]} 22. Nf3 {[%clk 0:01:07]}  Qb7 {[%clk 0:02:02]} 23. Nd4 {[%clk 0:00:57]}  e5 {[%clk 0:02:01]} 24. Nd5 {[%clk 0:00:54]}  Bf8 {[%clk 0:01:58]} 25. fxe5 {[%clk 0:00:51]}  Nxe5 {[%clk 0:01:51]} 26. Qe3 {[%clk 0:00:49]}  Ne8 {[%clk 0:01:51]} 27. Nf3 {[%clk 0:00:42]}  Qb8 {[%clk 0:01:44]} 28. Rf1 {[%clk 0:00:37]}  Bxd5 {[%clk 0:01:43]} 29. exd5 {[%clk 0:00:36]}  Bg7 {[%clk 0:01:40]} 30. Nxe5 {[%clk 0:00:36]}  Bxe5 {[%clk 0:01:37]} 31. Bxe5 {[%clk 0:00:36]}  dxe5 {[%clk 0:01:38]} 32. Qh6 {[%clk 0:00:23]}  Qc7 {[%clk 0:01:35]} 33. Rf5 {[%clk 0:00:18]}  f6 {[%clk 0:01:33]} 34. Rf2 {[%clk 0:00:15]}  Qg7 {[%clk 0:01:33]} 35. Qxg7+ {[%clk 0:00:15]}  Kxg7 {[%clk 0:01:32]} 36. Re1 {[%clk 0:00:15]}  b5 {[%clk 0:01:26]} 37. Bd3 {[%clk 0:00:15]}  bxc4 {[%clk 0:01:26]} 38. bxc4 {[%clk 0:00:15]}  Nd6 {[%clk 0:01:26]} 39. g5 {[%clk 0:00:16]}  fxg5 {[%clk 0:01:24]} 40. Rxe5 {[%clk 0:00:16]}  Kh6 {[%clk 0:01:21]} 41. Re7 {[%clk 0:00:15]}  a5 {[%clk 0:01:17]} 42. Rf6 {[%clk 0:00:14]}  g4 {[%clk 0:01:13]} 43. h4 {[%clk 0:00:14]}  Nxc4 {[%clk 0:01:00]} 44. Bxc4 {[%clk 0:00:14]}  Rxc4 {[%clk 0:00:58]} 45. Rff7 {[%clk 0:00:15]}  Rh8 {[%clk 0:00:58]} 46. d6 {[%clk 0:00:15]}  Rcc8 {[%clk 0:00:51]} 47. d7 {[%clk 0:00:15]}  Rcd8 {[%clk 0:00:52]} 48. Kg2 {[%clk 0:00:15]}  g5 {[%clk 0:00:52]} 49. h5 {[%clk 0:00:14]}  Kxh5 {[%clk 0:00:51]} 50. Rxh7+ {[%clk 0:00:14]}  Rxh7 {[%clk 0:00:51]} 51. Rxh7+ {[%clk 0:00:15]}  Kg6 {[%clk 0:00:51]} 52. Re7 {[%clk 0:00:15]}  Kf6 {[%clk 0:00:52]} 53. Rh7 {[%clk 0:00:12]}  Ke6 {[%clk 0:00:52]} 54. Kg3 {[%clk 0:00:11]}  Rxd7 {[%clk 0:00:52]} 55. Rxd7 {[%clk 0:00:11]}  Kxd7 {[%clk 0:00:53]} 56. Kxg4 {[%clk 0:00:12]}  Kc6 {[%clk 0:00:53]} 57. Kxg5 {[%clk 0:00:12]}  Kc5 {[%clk 0:00:54]} 58. Kf4 {[%clk 0:00:13]}  Kb4 {[%clk 0:00:55]} 59. Ke3 {[%clk 0:00:14]}  Ka3 {[%clk 0:00:55]} 60. Kd2 {[%clk 0:00:15]}  Kxa2 {[%clk 0:00:56]} 61. Kc1 {[%clk 0:00:16]}  a4 {[%clk 0:00:56]} 62. Kc2 {[%clk 0:00:16]}  a3 {[%clk 0:00:56]} 63. Kc1 {[%clk 0:00:16]}  Kb3 {[%clk 0:00:56]} 64. Kb1 {[%clk 0:00:17]}  a2+ {[%clk 0:00:57]} 65. Ka1 {[%clk 0:00:18]}  Ka3 {[%clk 0:00:57]} 1/2-1/2


[Site "https://www.chess.com"]

[Event "Titled Tuesday Blitz June 15 2021"]
[White "Grochal, Joey"]
[Black "Kollars, Dmitrij"]
[WhiteFideId "1019945"]
[BlackFideId "12909572"]
[WhiteElo "2265"]
[BlackElo "2576"]
[Result "0-1"]
[Round "01"]
[TimeControl "180+1"]
[Date "2021.06.15"]
[WhiteClock "0:00:02"]
[BlackClock "0:00:07"]

1. d4 {[%clk 0:02:56]}  Nf6 {[%clk 0:02:58]} 2. c4 {[%clk 0:02:48]}  g6 {[%clk 0:02:56]} 3. Nc3 {[%clk 0:02:48]}  Bg7 {[%clk 0:02:55]} 4. e4 {[%clk 0:02:47]}  O-O {[%clk 0:02:56]} 5. Nf3 {[%clk 0:02:46]}  d6 {[%clk 0:02:56]} 6. Be2 {[%clk 0:02:45]}  e5 {[%clk 0:02:57]} 7. d5 {[%clk 0:02:45]}  a5 {[%clk 0:02:54]} 8. Bg5 {[%clk 0:02:44]}  h6 {[%clk 0:02:53]} 9. Bh4 {[%clk 0:02:41]}  Qe8 {[%clk 0:02:52]} 10. O-O {[%clk 0:02:40]}  Na6 {[%clk 0:02:50]} 11. Nd2 {[%clk 0:02:39]}  Nh7 {[%clk 0:02:49]} 12. a3 {[%clk 0:02:33]}  Bd7 {[%clk 0:02:48]} 13. b3 {[%clk 0:02:29]}  h5 {[%clk 0:02:48]} 14. f3 {[%clk 0:02:28]}  Bh6 {[%clk 0:02:48]} 15. Rb1 {[%clk 0:02:23]}  Be3+ {[%clk 0:02:42]} 16. Kh1 {[%clk 0:02:19]}  f5 {[%clk 0:02:38]} 17. b4 {[%clk 0:02:11]}  axb4 {[%clk 0:02:39]} 18. axb4 {[%clk 0:02:11]}  g5 {[%clk 0:02:39]} 19. Bf2 {[%clk 0:02:10]}  Bxf2 {[%clk 0:02:35]} 20. Rxf2 {[%clk 0:02:11]}  f4 {[%clk 0:02:36]} 21. c5 {[%clk 0:02:07]}  dxc5 {[%clk 0:02:11]} 22. Bxa6 {[%clk 0:02:06]}  Rxa6 {[%clk 0:02:11]} 23. bxc5 {[%clk 0:02:06]}  g4 {[%clk 0:02:10]} 24. Rxb7 {[%clk 0:01:45]}  g3 {[%clk 0:02:10]} 25. Re2 {[%clk 0:01:40]}  Qd8 {[%clk 0:02:06]} 26. Nf1 {[%clk 0:01:22]}  Rg6 {[%clk 0:01:47]} 27. Reb2 {[%clk 0:01:20]}  gxh2 {[%clk 0:01:26]} 28. Rb8 {[%clk 0:01:12]}  Qg5 {[%clk 0:01:16]} 29. Rxf8+ {[%clk 0:01:11]}  Nxf8 {[%clk 0:01:16]} 30. Nxh2 {[%clk 0:00:47]}  h4 {[%clk 0:01:12]} 31. d6 {[%clk 0:00:44]}  cxd6 {[%clk 0:01:12]} 32. cxd6 {[%clk 0:00:43]}  h3 {[%clk 0:01:11]} 33. Qf1 {[%clk 0:00:40]}  Qg3 {[%clk 0:01:01]} 34. Nd5 {[%clk 0:00:31]}  Kg7 {[%clk 0:01:00]} 35. Ne7 {[%clk 0:00:30]}  Rxd6 {[%clk 0:00:54]} 36. Nf5+ {[%clk 0:00:30]}  Bxf5 {[%clk 0:00:53]} 37. exf5 {[%clk 0:00:31]}  Rh6 {[%clk 0:00:32]} 38. Kg1 {[%clk 0:00:31]}  Nh7 {[%clk 0:00:23]} 39. Ng4 {[%clk 0:00:32]}  Rd6 {[%clk 0:00:07]} 40. Qc1 {[%clk 0:00:30]}  Ng5 {[%clk 0:00:06]} 41. Qc7+ {[%clk 0:00:27]}  Nf7 {[%clk 0:00:06]} 42. Qc1 {[%clk 0:00:12]}  e4 {[%clk 0:00:06]} 43. f6+ {[%clk 0:00:12]}  Kg6 {[%clk 0:00:05]} 44. Qb1 {[%clk 0:00:11]}  Kg5 {[%clk 0:00:04]} 45. Rb5+ {[%clk 0:00:10]}  Kh4 {[%clk 0:00:05]} 46. Rb2 {[%clk 0:00:07]}  Ng5 {[%clk 0:00:04]} 47. Qf1 {[%clk 0:00:06]}  Nxf3+ {[%clk 0:00:04]} 48. Kh1 {[%clk 0:00:06]}  hxg2+ {[%clk 0:00:05]} 49. Rxg2 {[%clk 0:00:05]}  Qh3+ {[%clk 0:00:05]} 50. Nh2 {[%clk 0:00:05]}  Nxh2 {[%clk 0:00:05]} 51. Rg4+ {[%clk 0:00:02]}  Nxg4+ {[%clk 0:00:05]} 52. Qxh3+ {[%clk 0:00:02]}  Kxh3 {[%clk 0:00:06]} 53. f7 {[%clk 0:00:02]}  Rd1# {[%clk 0:00:07]} 0-1


[Site "https://www.chess.com"]

[Event "Titled Tuesday Blitz June 15 2021"]
[White "Howell, David W L"]
[Black "Odegov, Artem"]
[WhiteFideId "410608"]
[BlackFideId "34183644"]
[WhiteElo "2643"]
[BlackElo "2297"]
[Result "1-0"]
[Round "01"]
[TimeControl "180+1"]
[Date "2021.06.15"]
[WhiteClock "0:00:09"]
[BlackClock "0:00:07"]

1. b3 {[%clk 0:02:50]}  Nf6 {[%clk 0:02:58]} 2. Bb2 {[%clk 0:02:51]}  g6 {[%clk 0:02:58]} 3. d4 {[%clk 0:02:47]}  Bg7 {[%clk 0:02:58]} 4. Nf3 {[%clk 0:02:47]}  O-O {[%clk 0:02:58]} 5. e3 {[%clk 0:02:47]}  d5 {[%clk 0:02:57]} 6. c4 {[%clk 0:02:46]}  c6 {[%clk 0:02:56]} 7. Nc3 {[%clk 0:02:46]}  Bf5 {[%clk 0:02:55]} 8. Be2 {[%clk 0:02:37]}  Nbd7 {[%clk 0:02:52]} 9. O-O {[%clk 0:02:37]}  Ne4 {[%clk 0:02:52]} 10. Rc1 {[%clk 0:02:34]}  e6 {[%clk 0:02:45]} 11. Nxe4 {[%clk 0:02:26]}  dxe4 {[%clk 0:02:39]} 12. Nd2 {[%clk 0:02:27]}  h5 {[%clk 0:02:39]} 13. c5 {[%clk 0:02:03]}  Qg5 {[%clk 0:02:30]} 14. Kh1 {[%clk 0:01:53]}  Rfd8 {[%clk 0:02:29]} 15. Qe1 {[%clk 0:01:44]}  e5 {[%clk 0:02:20]} 16. Nc4 {[%clk 0:01:43]}  exd4 {[%clk 0:02:19]} 17. Bxd4 {[%clk 0:01:43]}  Bxd4 {[%clk 0:02:15]} 18. exd4 {[%clk 0:01:44]}  Nf6 {[%clk 0:02:16]} 19. Nd6 {[%clk 0:01:38]}  Rd7 {[%clk 0:02:07]} 20. Bc4 {[%clk 0:01:25]}  Rad8 {[%clk 0:01:48]} 21. Qe3 {[%clk 0:01:20]}  Qh4 {[%clk 0:01:38]} 22. b4 {[%clk 0:00:54]}  Ng4 {[%clk 0:01:00]} 23. Qf4 {[%clk 0:00:44]}  Be6 {[%clk 0:00:44]} 24. Bxe6 {[%clk 0:00:22]}  fxe6 {[%clk 0:00:45]} 25. h3 {[%clk 0:00:22]}  Rf8 {[%clk 0:00:43]} 26. Qxe4 {[%clk 0:00:22]}  Rg7 {[%clk 0:00:30]} 27. Kg1 {[%clk 0:00:18]}  Rh7 {[%clk 0:00:11]} 28. Qxg6+ {[%clk 0:00:10]}  Kh8 {[%clk 0:00:11]} 29. Rc2 {[%clk 0:00:09]}  Rg7 {[%clk 0:00:07]} 30. Qxe6 {[%clk 0:00:10]}  Nf6 {[%clk 0:00:04]} 31. Kh1 {[%clk 0:00:09]}  Nd5 {[%clk 0:00:04]} 32. Nf5 {[%clk 0:00:08]}  Rxf5 {[%clk 0:00:04]} 33. Qxf5 {[%clk 0:00:08]}  Nf4 {[%clk 0:00:04]} 34. g3 {[%clk 0:00:06]}  Qxh3+ {[%clk 0:00:04]} 35. Qxh3 {[%clk 0:00:06]}  Nxh3 {[%clk 0:00:05]} 36. Re2 {[%clk 0:00:06]}  h4 {[%clk 0:00:04]} 37. Kh2 {[%clk 0:00:06]}  Ng5 {[%clk 0:00:04]} 38. Re3 {[%clk 0:00:05]}  hxg3+ {[%clk 0:00:04]} 39. fxg3 {[%clk 0:00:06]}  Rh7+ {[%clk 0:00:04]} 40. Kg2 {[%clk 0:00:06]}  Rg7 {[%clk 0:00:04]} 41. Rh1+ {[%clk 0:00:07]}  Kg8 {[%clk 0:00:04]} 42. Rf1 {[%clk 0:00:07]}  Rd7 {[%clk 0:00:02]} 43. Rf4 {[%clk 0:00:06]}  Nf7 {[%clk 0:00:02]} 44. Rg4+ {[%clk 0:00:05]}  Kf8 {[%clk 0:00:03]} 45. Rf3 {[%clk 0:00:06]}  a6 {[%clk 0:00:03]} 46. Rgf4 {[%clk 0:00:06]}  Ke8 {[%clk 0:00:04]} 47. Rxf7 {[%clk 0:00:06]}  Rxf7 {[%clk 0:00:04]} 48. Rxf7 {[%clk 0:00:07]}  Kxf7 {[%clk 0:00:05]} 49. Kf3 {[%clk 0:00:08]}  Kg6 {[%clk 0:00:06]} 50. Ke4 {[%clk 0:00:08]}  Kf6 {[%clk 0:00:07]} 51. g4 {[%clk 0:00:08]}  Kg5 {[%clk 0:00:07]} 52. Kf3 {[%clk 0:00:09]}  a5 {[%clk 0:00:07]} 53. bxa5 {[%clk 0:00:09]} 1-0


[Site "https://www.chess.com"]